bitfinex-derivatives/quotes_SOLF0:USTF0_20250113
["timestamp","ask_amount","ask_price","bid_price","bid_amount"]
[1736800622508,21.69466236,179.07,178.93,7.7047]
[1736800622709,21.69466236,179.07,178.93,29.39936236]
[1736800622909,2.65369723,179.09,178.96,21.69466236]
[1736800623106,0.95249723,179.09,178.97,1.599]
[1736800623509,21.69466236,179.07,178.97,1.599]
[1736800623714,21.69466236,179.07,178.97,2.7955]
[1736800623909,0.95249723,179.09,178.93,7.7047]
[1736800623910,21.69466236,179.04,178.93,7.7047]
[1736800625615,21.69466236,179.04,178.94,2.7959]
[1736800625817,21.69466236,179.04,178.93,1.82467]
[1736800626615,2.795,179.01,178.94,2.796]
[1736800626815,21.69466236,179.04,178.94,2.796]
[1736800627214,21.69466236,179.01,178.93,0.23997]
[1736800627818,2.7957,178.97,178.93,3.03607]
[1736800628019,21.69466236,178.98,178.93,0.23997]
[1736800628414,2.796,178.94,178.93,0.23997]
[1736800629012,1.6569,178.97,178.84,1.6174]
[1736800629217,21.69466236,178.95,178.84,1.6174]
[1736800629717,21.69466236,178.95,178.86,2.7972]
[1736800630311,1.6569,178.97,178.84,1.6174]
[1736800630515,1.6569,178.97,178.87,6.12]
[1736800630711,21.69466236,178.95,178.87,6.12]
[1736800630916,21.69466236,178.95,178.82,6.12]
[1736800631120,21.69466236,178.92,178.8,4.6642059]
[1736800631316,7.07333155,178.94,178.77,95.92]
[1736800631317,21.69466236,178.89,178.77,95.92]
[1736800631517,3.3435,178.88,178.77,95.92]
[1736800631918,3.3435,178.88,178.77,117.61466236]
[1736800632215,1.5613,178.91,178.77,117.61466236]
[1736800632520,1.5613,178.91,178.81,2.798]
[1736800632722,1.5613,178.91,178.77,117.61466236]
[1736800632922,3.2459,178.91,178.77,95.92]
[1736800633324,21.69466236,178.89,178.77,95.92]
[1736800633525,2.7975,178.85,178.77,95.92]
[1736800634324,21.69466236,178.86,178.77,95.92]
[1736800634530,1.7228,178.85,178.77,95.92]
[1736800635015,21.69466236,178.89,178.77,95.92]
[1736800635923,4.9687,178.91,178.85,2.7974]
[1736800636128,4.9687,178.91,178.82,6.14]
[1736800636621,2.7968,178.9,178.84,2.7976]
[1736800636923,1.7228,178.91,178.82,6.14]
[1736800637325,2.7969,178.89,178.84,2.7974]
[1736800637717,2.7969,178.89,178.82,6.14]
[1736800637919,2.7966,178.9,178.85,2.7974]
[1736800639220,2.7968,178.89,178.85,2.7974]
[1736800641024,2.7966,178.9,178.82,6.14]
[1736800642037,24.84826236,178.95,178.82,6.14]
[1736800642235,21.69466236,178.95,178.88,2.7968]
[1736800642438,2.7962,178.93,178.88,2.7968]
[1736800642834,23.31596236,178.98,178.88,2.7968]
[1736800643339,21.69466236,178.92,178.77,95.92]
[1736800643535,21.69466236,178.89,178.77,95.92]
[1736800643739,2.7982,178.81,178.77,95.92]
[1736800643933,1.7148,178.88,178.79,2.7983]
[1736800644238,2.7973,178.86,178.77,95.92]
[1736800644631,1.7148,178.88,178.77,95.92]
[1736800644838,3.3789,178.91,178.77,95.92]
[1736800645042,21.69466236,178.92,178.84,2.7975]
[1736800645544,2.7971,178.87,178.82,6.14]
[1736800645745,2.7971,178.87,178.83,2.7977]
[1736800646943,21.69466236,178.92,178.82,6.14]
[1736800647148,21.69466236,178.89,178.77,95.92]
[1736800647338,1.6511,178.95,178.77,95.92]
[1736800647339,21.69466236,178.86,178.77,95.92]
[1736800647743,1.7227,178.85,178.77,95.92]
[1736800648148,2.7974,178.85,178.81,2.798]
[1736800648447,1.5786,178.89,178.77,95.92]
[1736800648745,2.7977,178.84,178.77,95.92]
[1736800649247,2.7977,178.84,178.8,2.7981]
[1736800649946,2.7978,178.83,178.79,2.7983]
[1736800650244,23.27326236,178.89,178.79,2.7983]
[1736800650544,23.27326236,178.89,178.77,95.92]
[1736800650746,21.69466236,178.86,178.77,95.92]
[1736800651041,23.27326236,178.89,178.77,95.92]
[1736800651238,3.3708,178.91,178.77,117.61466236]
[1736800651645,2.797,178.88,178.84,2.7974]
[1736800653351,21.69466236,178.95,178.82,6.14]
[1736800653543,2.797,178.88,178.84,2.7976]
[1736800654243,21.69466236,178.95,178.83,3.2947]
[1736800654445,3.2452,178.96,178.83,24.98936236]
[1736800654643,21.69466236,178.95,178.83,3.2947]
[1736800655440,3.2872,178.96,178.83,3.2947]
[1736800655847,1.6661,178.96,178.89,2.7967]
[1736800656045,1.6661,178.96,178.83,3.2947]
[1736800656647,23.37416236,179.01,178.85,21.69466236]
[1736800656941,1.6795,179.01,178.88,21.69466236]
[1736800657250,1.6795,179.01,178.89,6.14]
[1736800657451,1.6795,179.01,178.89,7.734]
[1736800657650,2.7957,178.97,178.92,2.7962]
[1736800658649,1.6434,179.03,178.89,7.734]
[1736800658851,1.6434,179.03,178.92,21.69466236]
[1736800659149,1.6434,179.03,178.93,3.2281]
[1736800659347,2.7949,179.01,178.97,2.7955]
[1736800659553,21.69466236,179.1,178.96,6.14]
[1736800659851,2.7941,179.07,178.99,2.7951]
[1736800660052,2.7941,179.07,178.96,6.14]
[1736800660053,21.69466236,179.1,178.97,1.5904]
[1736800660343,0.95249934,179.09,178.97,1.5904]
[1736800660545,1.634,179.11,178.98,21.69466236]
[1736800660749,218.0859601,179.13,178.98,21.69466236]
[1736800660750,25.10176236,179.13,178.98,21.69466236]
[1736800660946,0.95230268,179.12,178.98,21.69466236]
[1736800661550,2.7941,179.07,178.98,21.69466236]
[1736800662960,2.7941,179.07,179.02,2.7946]
[1736800665054,2.7941,179.07,179.03,2.7946]
[1736800665951,25.10176236,179.13,178.98,21.69466236]
[1736800666259,21.69466236,179.1,178.99,6.12]
[1736800666756,21.69466236,179.1,179.0,2.7951]
[1736800667455,2.7944,179.05,179.0,2.7951]
[1736800668257,2.7944,179.05,178.99,6.12]
[1736800668461,2.7944,179.05,179.01,2.7949]
[1736800668753,25.10176236,179.13,178.99,6.12]
[1736800668956,0.95241972,179.12,179.02,2.7946]
[1736800670558,2.7941,179.07,179.02,2.7946]
[1736800670758,25.10176236,179.13,179.02,2.7946]
[1736800671057,0.95232852,179.12,179.02,2.7946]
[1736800671558,2.7942,179.06,179.02,2.7946]
[1736800671755,21.69466236,179.13,178.99,6.12]
[1736800672064,2.7938,179.08,178.99,6.12]
[1736800672359,2.7938,179.08,179.03,2.7945]
[1736800672555,2.7938,179.08,178.99,6.12]
[1736800672756,33.39916236,179.19,178.99,6.12]
[1736800672757,231.58103729,179.25,179.01,21.69466236]
[1736800672951,231.58103729,179.25,179.12,21.69466236]
[1736800673160,231.58103729,179.25,179.13,6.24]
[1736800673351,231.58103729,179.25,179.19,2.7921]
[1736800673352,38.66003573,179.2,179.19,2.7921]
[1736800673557,38.66003573,179.2,179.15,21.69466236]
[1736800674056,38.66003573,179.2,179.18,2.7922]
[1736800674250,38.66003573,179.2,179.15,21.69466236]
[1736800674657,38.66003573,179.2,179.19,2.7921]
[1736800675058,38.66003573,179.2,179.15,21.69466236]
[1736800675363,38.66003573,179.2,179.17,2.7923]
[1736800676758,38.66003573,179.2,179.18,2.7923]
[1736800679160,38.66003573,179.2,179.19,2.7921]
[1736800679559,38.66003573,179.2,179.15,27.91466236]
[1736800679761,38.66003573,179.2,179.15,6.22]
[1736800680162,38.66003573,179.2,179.11,2.7933]
[1736800680358,38.66003573,179.2,179.1,102.14]
[1736800680563,1.6229,179.19,179.1,95.92]
[1736800681165,38.66003573,179.2,179.1,95.92]
[1736800681166,38.66003573,179.2,179.12,21.69466236]
[1736800681661,38.66003573,179.2,179.1,95.92]
[1736800682364,2.7923,179.18,179.13,2.7929]
[1736800682568,38.66003573,179.2,179.1,95.92]
[1736800682861,38.66003573,179.2,179.18,2.7921]
[1736800683057,38.66003573,179.2,179.16,6.22]
[1736800683762,38.66003573,179.2,179.19,2.7921]
[1736800683965,27.93243573,179.2,179.19,2.7921]
[1736800685263,3.2202,179.29,179.18,21.69466236]
[1736800685264,2.7907,179.28,179.24,2.7913]
[1736800685467,3.2202,179.29,179.21,21.69466236]
[1736800685869,2.7902,179.32,179.21,21.69466236]
[1736800686462,2.7902,179.32,179.24,2.7913]
[1736800686664,2.7902,179.32,179.21,21.69466236]
[1736800686665,2.7904,179.31,179.25,6.2]
[1736800686863,1.6039,179.34,179.25,6.2]
[1736800687374,1.6039,179.34,179.26,2.7909]
[1736800687565,1.6039,179.34,179.25,6.2]
[1736800687759,2.7907,179.29,179.25,6.2]
[1736800687960,1.6039,179.34,179.25,6.2]
[1736800688665,23.29856236,179.34,179.25,6.2]
[1736800689267,1.6039,179.34,179.25,6.2]
[1736800689968,2.7902,179.32,179.25,8.991]
[1736800690180,1.6617,179.31,179.25,6.2]
[1736800691571,2.7906,179.29,179.25,6.2]
[1736800691767,1.6617,179.31,179.25,6.2]
[1736800692174,2.7901,179.32,179.28,2.7906]
[1736800692372,1.6039,179.34,179.25,6.2]
[1736800692772,1.6039,179.34,179.28,2.7906]
[1736800692773,2.79,179.33,179.28,2.7906]
[1736800692975,2.79,179.33,179.25,6.2]
[1736800693178,1.704,179.36,179.27,21.69466236]
[1736800693374,2.7896,179.35,179.27,21.69466236]
[1736800694177,1.704,179.36,179.27,21.69466236]
[1736800695577,1.704,179.36,179.25,102.0]
[1736800696469,1.5787,179.37,179.27,21.69466236]
[1736800696672,1.5787,179.37,179.3,21.69466236]
[1736800697277,1.5787,179.37,179.32,2.7901]
[1736800698289,1.6639,179.4,179.33,6.2]
[1736800698475,1.7115,179.42,179.33,27.89466236]
[1736800699069,2.7889,179.4,179.33,27.89466236]
[1736800699282,1.7115,179.42,179.33,27.89466236]
[1736800699481,1.7115,179.42,179.33,6.2]
[1736800699682,2.7889,179.4,179.33,6.2]
[1736800699881,1.7115,179.42,179.33,8.9899]
[1736800700182,1.7115,179.42,179.33,6.2]
[1736800700382,1.7115,179.42,179.37,2.7893]
[1736800700579,1.7115,179.42,179.33,6.2]
[1736800700884,2.7893,179.38,179.34,2.7897]
[1736800701077,1.7115,179.42,179.33,6.2]
[1736800701282,1.7115,179.42,179.26,1.5557]
[1736800701283,21.69466236,179.4,179.27,6.2]
[1736800702180,2.7898,179.34,179.3,2.7903]
[1736800703079,21.69466236,179.4,179.3,2.7903]
[1736800703278,2.7899,179.33,179.3,2.7903]
[1736800703674,21.69466236,179.4,179.3,2.7903]
[1736800703876,7.9115,179.42,179.28,21.69466236]
[1736800704083,7.9115,179.42,179.32,2.7901]
[1736800704285,2.789,179.39,179.32,2.7901]
[1736800704480,7.9115,179.42,179.32,2.7901]
[1736800704781,1.7115,179.42,179.31,21.69466236]
[1736800704976,2.7891,179.39,179.31,21.69466236]
[1736800705381,2.7891,179.39,179.35,2.7895]
[1736800705583,1.7115,179.42,179.31,21.69466236]
[1736800705584,2.7889,179.4,179.34,6.2]
[1736800705885,2.7889,179.4,179.34,27.89466236]
[1736800706082,2.7889,179.4,179.36,2.7894]
[1736800706279,2.7888,179.41,179.34,27.89466236]
[1736800706583,1.5564,179.44,179.34,27.89466236]
[1736800706785,2.7885,179.43,179.37,21.69466236]
[1736800706979,1.5564,179.44,179.37,21.69466236]
[1736800707175,1.5961,179.48,179.41,21.69466236]
[1736800707690,1.5961,179.48,179.38,21.69466236]
[1736800708295,1.5961,179.48,179.35,21.69466236]
[1736800708787,2.7887,179.42,179.37,2.7892]
[1736800708988,1.5961,179.48,179.35,21.69466236]
[1736800709184,1.5961,179.48,179.34,6.2]
[1736800709391,1.5961,179.48,179.36,2.7894]
[1736800710183,1.5961,179.48,179.34,6.2]
[1736800710986,1.5961,179.48,179.35,21.69466236]
[1736800711391,2.7883,179.44,179.4,2.7888]
[1736800711584,1.5961,179.48,179.35,21.69466236]
[1736800711790,2.7882,179.45,179.39,2.7889]
[1736800711993,1.5961,179.48,179.39,2.7889]
[1736800712587,2.7884,179.44,179.39,2.7889]
[1736800712794,1.5961,179.48,179.39,2.7889]
[1736800713094,2.7888,179.4,179.37,2.7893]
[1736800713291,1.5961,179.48,179.37,2.7893]
[1736800713697,2.7886,179.42,179.38,2.7891]
[1736800714399,1.5961,179.48,179.38,2.7891]
[1736800714596,2.7887,179.41,179.38,2.7891]
[1736800715000,1.5961,179.48,179.4,2.7888]
[1736800715197,1.5961,179.48,179.38,21.69466236]
[1736800715697,4.3837,179.48,179.38,21.69466236]
[1736800715891,1.6088,179.51,179.41,21.69466236]
[1736800716199,1.6088,179.51,179.41,27.89466236]
[1736800716902,2.7876,179.48,179.41,27.89466236]
[1736800717102,27.26606236,179.61,179.44,21.69466236]
[1736800717298,1.5773,179.57,179.47,21.69466236]
[1736800718202,1.5773,179.57,179.48,2.7876]
[1736800719303,2.7874,179.49,179.45,2.788]
[1736800719499,1.5773,179.57,179.44,21.69466236]
[1736800719704,1.5773,179.57,179.42,1.6462]
[1736800719903,1.5773,179.57,179.45,2.788]
[1736800720201,1.5773,179.57,179.42,1.6462]
[1736800720400,1.5773,179.57,179.44,21.69466236]
[1736800720601,1.5773,179.57,179.45,2.7879]
[1736800720903,1.5773,179.57,179.44,21.69466236]
[1736800721198,21.69466236,179.55,179.42,7.8262]
[1736800721403,21.69466236,179.55,179.42,6.18]
[1736800721898,21.69466236,179.55,179.41,21.69466236]
[1736800722103,21.69466236,179.52,179.4,95.7]
[1736800722300,3.2392,179.51,179.4,95.7]
[1736800722901,2.7882,179.44,179.4,95.7]
[1736800723608,21.69466236,179.49,179.34,6.18]
[1736800723805,1.685,179.48,179.34,6.18]
[1736800724005,2.7891,179.39,179.34,6.18]
[1736800724309,1.685,179.48,179.34,6.18]
[1736800724808,2.789,179.39,179.34,6.18]
[1736800725205,1.685,179.48,179.34,6.18]
[1736800725909,1.685,179.48,179.32,21.69466236]
[1736800726106,1.685,179.48,179.32,27.87466236]
[1736800726308,2.7892,179.38,179.32,30.66466236]
[1736800727006,21.69466236,179.46,179.29,1.5773]
[1736800727210,21.69466236,179.43,179.25,21.69466236]
[1736800727510,21.69466236,179.4,179.26,6.18]
[1736800727809,1.6971,179.39,179.26,6.18]
[1736800728003,2.7901,179.32,179.26,8.9709]
[1736800728606,2.79,179.33,179.26,8.9709]
[1736800729510,1.6971,179.39,179.28,21.69466236]
[1736800729711,1.6971,179.39,179.31,21.69466236]
[1736800730016,2.7888,179.4,179.34,24.48426236]
[1736800730209,1.6432,179.45,179.34,27.87466236]
[1736800731510,2.7891,179.39,179.34,27.87466236]
[1736800731813,1.6432,179.45,179.31,21.69466236]
[1736800732012,21.69466236,179.43,179.28,27.87466236]
[1736800732707,21.69466236,179.43,179.28,30.66516236]
[1736800732708,2.79,179.33,179.28,30.66516236]
[1736800733012,21.69466236,179.43,179.28,27.87466236]
[1736800733513,21.69466236,179.43,179.28,30.66526236]
[1736800733812,1.6432,179.45,179.31,21.69466236]
[1736800734005,2.7888,179.41,179.36,2.7894]
[1736800734209,1.6432,179.45,179.36,2.7894]
[1736800736422,2.7885,179.43,179.38,2.789]
[1736800736617,1.6047,179.48,179.37,21.69466236]
[1736800736813,2.7894,179.37,179.32,2.79]
[1736800737013,21.69466236,179.46,179.31,21.69466236]
[1736800737615,21.69466236,179.46,179.31,24.48486236]
[1736800737813,21.69466236,179.46,179.31,21.69466236]
[1736800738219,2.7895,179.36,179.32,2.79]
[1736800739114,7.1801,179.48,179.34,21.69466236]
[1736800740119,7.1801,179.48,179.34,24.48426236]
[1736800740614,7.1801,179.48,179.34,21.69466236]
[1736800741019,1.6047,179.48,179.34,21.69466236]
[1736800741221,3.2909,179.51,179.4,21.69466236]
[1736800741417,1.6147,179.51,179.43,21.69466236]
[1736800741622,1.6147,179.51,179.4,27.85466236]
[1736800741819,1.6147,179.51,179.37,21.69466236]
[1736800742214,2.7889,179.4,179.37,21.69466236]
[1736800742423,1.6147,179.51,179.37,21.69466236]
[1736800743319,2.7888,179.41,179.37,24.48386236]
[1736800743614,21.69466236,179.46,179.32,6.18]
[1736800743815,3.2877,179.45,179.32,6.18]
[1736800744018,3.2877,179.45,179.34,2.7897]
[1736800744222,3.2877,179.45,179.32,6.18]
[1736800744419,2.7893,179.37,179.33,2.7899]
[1736800744622,21.69466236,179.43,179.29,1.6446]
[1736800744818,1.6561,179.42,179.28,21.69466236]
[1736800745417,2.79,179.33,179.28,24.48536236]
[1736800745618,1.6561,179.42,179.28,21.69466236]
[1736800746024,2.7898,179.34,179.29,2.7905]
[1736800746519,1.6561,179.42,179.28,21.69466236]
[1736800746719,1.6561,179.42,179.28,24.48526236]
[1736800746924,1.6561,179.42,179.28,21.69466236]
[1736800747224,2.7905,179.3,179.25,30.66576236]
[1736800747618,21.69466236,179.41,179.28,21.69466236]
[1736800747819,1.6561,179.42,179.28,21.69466236]
[1736800748424,21.69466236,179.38,179.25,21.69466236]
[1736800748619,21.69466236,179.41,179.28,21.69466236]
[1736800748818,1.6561,179.42,179.28,21.69466236]
[1736800749122,21.69466236,179.41,179.25,21.69466236]
[1736800749325,21.69466236,179.41,179.28,21.69466236]
[1736800749521,1.6561,179.42,179.28,21.69466236]
[1736800749824,1.6561,179.42,179.26,6.22]
[1736800750224,21.69466236,179.39,179.25,21.69466236]
[1736800750523,2.7908,179.28,179.24,6.22]
[1736800750724,21.69466236,179.39,179.23,1.6446]
[1736800750924,5.5775,179.41,179.25,21.69466236]
[1736800751117,1.6561,179.42,179.28,21.69466236]
[1736800751324,2.7903,179.31,179.28,21.69466236]
[1736800752421,2.79,179.33,179.28,21.69466236]
[1736800752621,21.69466236,179.41,179.28,21.69466236]
[1736800752821,21.69466236,179.41,179.25,21.69466236]
[1736800753026,2.7908,179.28,179.25,27.91466236]
[1736800753221,21.69466236,179.38,179.25,6.22]
[1736800753522,27.91466236,179.38,179.25,6.22]
[1736800753715,21.69466236,179.41,179.25,27.91466236]
[1736800753921,1.6561,179.42,179.28,21.69466236]
[1736800754326,21.69466236,179.41,179.25,27.91466236]
[1736800754829,21.69466236,179.41,179.25,30.70576236]
[1736800755828,2.7905,179.3,179.25,30.70576236]
[1736800756218,21.69466236,179.41,179.25,30.70576236]
[1736800756422,2.7906,179.29,179.25,30.70576236]
[1736800757130,2.7907,179.28,179.25,27.91466236]
[1736800757326,27.91466236,179.38,179.23,1.6446]
[1736800757824,21.69466236,179.38,179.25,21.69466236]
[1736800758024,1.6561,179.42,179.29,21.69466236]
[1736800758229,2.7897,179.35,179.3,2.7903]
[1736800758525,1.6561,179.42,179.29,27.91466236]
[1736800758931,2.7896,179.36,179.32,2.79]
[1736800759132,1.6561,179.42,179.29,27.91466236]
[1736800759334,2.7903,179.31,179.29,6.22]
[1736800759531,21.69466236,179.41,179.29,6.22]
[1736800759728,1.6561,179.42,179.29,6.22]
[1736800759926,2.7904,179.3,179.29,6.22]
[1736800760536,2.7903,179.31,179.29,6.22]
[1736800762226,21.69466236,179.4,179.29,6.22]
[1736800763333,2.7893,179.37,179.29,6.22]
[1736800763532,1.6561,179.42,179.29,6.22]
[1736800763732,5.5759,179.46,179.32,21.69466236]
[1736800763927,1.5617,179.45,179.32,21.69466236]
[1736800764333,2.7896,179.36,179.32,24.48476236]
[1736800764833,1.5617,179.45,179.32,21.69466236]
[1736800765328,2.7887,179.42,179.33,2.7899]
[1736800765529,1.5617,179.45,179.33,2.7899]
[1736800766033,2.7894,179.37,179.33,2.7899]
[1736800766327,1.5617,179.45,179.32,21.69466236]
[1736800766531,2.7903,179.31,179.26,27.89466236]
[1736800766729,21.69466236,179.38,179.26,6.2]
[1736800766925,1.557,179.37,179.26,6.2]
[1736800767229,2.7906,179.29,179.26,6.2]
[1736800767436,1.557,179.37,179.26,6.2]
[1736800767934,1.557,179.37,179.23,23.30906236]
[1736800767935,1.557,179.37,179.24,6.2]
[1736800768326,2.7908,179.28,179.24,6.2]
[1736800768538,1.557,179.37,179.24,6.2]
[1736800769125,1.557,179.37,179.27,2.7908]
[1736800769633,2.7904,179.31,179.27,2.7908]
[1736800770536,2.7901,179.32,179.28,2.7906]
[1736800770730,1.557,179.37,179.26,21.69466236]
[1736800771633,2.7902,179.32,179.28,2.7907]
[1736800772532,2.7902,179.31,179.28,2.7907]
[1736800772836,1.557,179.37,179.24,6.2]
[1736800773535,1.557,179.37,179.26,2.791]
[1736800773730,1.557,179.37,179.26,8.971]
[1736800774229,1.557,179.37,179.26,6.18]
[1736800774441,21.69466236,179.35,179.23,1.6144]
[1736800774738,21.69466236,179.35,179.22,104.6716]
[1736800774739,2.7915,179.23,179.22,95.7]
[1736800774939,21.69466236,179.32,179.16,21.69466236]
[1736800775137,21.69466236,179.29,179.16,6.2]
[1736800775331,1.6705,179.28,179.14,1.588]
[1736800775538,21.69466236,179.26,179.14,1.588]
[1736800775841,1.6705,179.28,179.14,1.588]
[1736800776141,1.6705,179.28,179.16,2.7925]
[1736800776340,2.7913,179.25,179.16,2.7925]
[1736800776541,1.6705,179.28,179.16,2.7925]
[1736800777133,1.6705,179.28,179.14,1.588]
[1736800777339,1.6705,179.28,179.16,21.69466236]
[1736800778241,2.7911,179.26,179.16,21.69466236]
[1736800778639,2.7912,179.25,179.2,2.7918]
[1736800780142,1.6705,179.28,179.16,21.69466236]
[1736800780742,2.7915,179.24,179.19,2.7921]
[1736800780938,2.7915,179.24,179.16,21.69466236]
[1736800781139,1.6705,179.28,179.16,21.69466236]
[1736800782545,1.6705,179.28,179.19,2.792]
[1736800783040,1.6705,179.28,179.18,2.7922]
[1736800783246,1.6705,179.28,179.17,6.18]
[1736800783441,1.6705,179.28,179.14,1.588]
[1736800783642,2.792,179.2,179.16,2.7925]
[1736800784242,1.6705,179.28,179.15,6.18]
[1736800784448,2.7922,179.19,179.15,8.9727]
[1736800785844,21.69466236,179.26,179.13,26.35006562]
[1736800786048,21.69466236,179.23,179.13,4.65540326]
[1736800786343,21.69466236,179.2,179.13,4.65540326]
[1736800786547,2.7931,179.13,179.09,2.7936]
[1736800786743,2.7931,179.13,179.08,7.8293]
[1736800787248,2.7931,179.13,179.09,2.7936]
[1736800787446,2.7932,179.12,179.04,21.69466236]
[1736800787743,1.6106,179.19,179.06,6.18]
[1736800787744,21.69466236,179.17,179.06,6.18]
[1736800787949,2.7941,179.07,179.02,7.7811]
[1736800788145,21.69466236,179.14,179.01,69.86479472]
[1736800788338,29.48526236,179.19,179.01,71.46589472]
[1736800788543,2.7931,179.13,179.04,21.69466236]
[1736800788943,29.48526236,179.19,179.09,2.7936]
[1736800789141,2.7926,179.16,179.08,6.18]
[1736800789348,1.6106,179.19,179.08,6.18]
[1736800790250,1.6106,179.19,179.07,21.69466236]
[1736800790450,1.6106,179.19,179.07,6.18]
[1736800790653,23.30526236,179.19,179.07,6.18]
[1736800790844,2.7932,179.12,179.07,8.9739]
[1736800791049,23.30526236,179.19,179.07,6.18]
[1736800791450,2.7931,179.13,179.07,6.18]
[1736800791954,23.30526236,179.19,179.07,6.18]
[1736800792156,1.6106,179.19,179.07,27.87466236]
[1736800793861,1.6106,179.19,179.07,6.18]
[1736800794058,2.7926,179.16,179.11,2.7932]
[1736800794362,1.6106,179.19,179.08,21.69466236]
[1736800794959,1.6106,179.19,179.12,2.7931]
[1736800794960,2.7926,179.16,179.12,2.7931]
[1736800795754,2.7929,179.15,179.11,2.7933]
[1736800795962,1.6106,179.19,179.08,29.46296236]
[1736800796352,1.6106,179.19,179.08,6.16]
[1736800796750,1.6106,179.19,179.05,21.69466236]
[1736800796955,2.7932,179.12,179.08,2.7937]
[1736800797858,2.7935,179.11,179.07,2.7939]
[1736800798455,2.7936,179.1,179.06,8.9541]
[1736800798857,1.6106,179.19,179.06,6.16]
[1736800799363,1.6106,179.19,179.05,2.7942]
[1736800800359,1.6106,179.19,179.02,23.34446236]
[1736800800360,21.69466236,179.17,179.02,23.34446236]
[1736800800662,2.7941,179.07,179.01,6.14]
[1736800800861,21.69466236,179.14,179.01,6.14]
[1736800801162,3.231,179.13,179.01,8.9348]
[1736800801363,2.7942,179.06,179.01,8.9348]
[1736800801560,2.7942,179.06,179.01,2.7948]
[1736800801764,2.7942,179.06,179.0,101.94]
[1736800801953,3.231,179.13,179.0,101.94]
[1736800802158,3.231,179.13,179.02,21.69466236]
[1736800802359,1.6106,179.19,179.1,2.7933]
[1736800802555,1.6106,179.19,179.07,6.14]
[1736800802759,23.30526236,179.19,179.07,6.14]
[1736800803160,2.7936,179.1,179.07,6.14]
[1736800803664,2.7932,179.12,179.07,6.14]
[1736800803865,1.6106,179.19,179.08,21.69466236]
[1736800804367,1.6106,179.19,179.08,23.31476236]
[1736800804567,1.6106,179.19,179.1,2.7935]
[1736800804864,1.6813,179.24,179.11,21.69466236]
[1736800805068,1.6376,179.24,179.14,21.69466236]
[1736800805361,1.6376,179.24,179.15,6.16]
[1736800805567,1.6376,179.24,179.16,2.7926]
[1736800806961,1.6376,179.24,179.15,6.16]
[1736800807261,1.6226,179.33,179.2,21.69466236]
[1736800807767,1.6226,179.33,179.23,21.69466236]
[1736800808069,2.7914,179.24,179.18,2.7921]
[1736800808258,21.69466236,179.29,179.16,95.84]
[1736800808463,21.69466236,179.26,179.16,95.84]
[1736800808658,1.7046,179.25,179.16,95.84]
[1736800808865,3.1886,179.28,179.17,21.69466236]
[1736800809357,3.1886,179.28,179.17,23.34336236]
[1736800809763,1.6005,179.28,179.17,23.34336236]
[1736800809966,2.7904,179.3,179.24,2.7913]
[1736800810356,3.1886,179.35,179.23,21.69466236]
[1736800810562,2.7904,179.3,179.25,2.7912]
[1736800810965,2.7904,179.3,179.23,21.69466236]
[1736800811168,1.6005,179.35,179.23,2.7915]
[1736800811364,23.29516236,179.35,179.23,2.7915]
[1736800812269,23.29516236,179.35,179.22,6.18]
[1736800813471,2.791,179.27,179.22,6.18]
[1736800813665,23.29516236,179.35,179.22,6.18]
[1736800813867,21.69466236,179.32,179.22,6.18]
[1736800814064,1.5599,179.31,179.22,6.18]
[1736800815174,2.7906,179.29,179.24,2.7913]
[1736800815467,21.69466236,179.29,179.17,1.6487]
[1736800815664,1.665,179.28,179.16,95.84]
[1736800816071,2.7918,179.21,179.16,98.6325]
[1736800816266,1.6835,179.27,179.16,95.84]
[1736800816463,21.69466236,179.26,179.16,95.84]